lending/lending_fUSD_20250516
["ID","MTS","AMOUNT","RATE_DAILY","PERIOD"]
[361269874,1747408241338,-400.0,0.00016438,2]
[361269875,1747408241347,-400.0,0.00016438,2]
[361269876,1747408241356,-792.66,0.00016438,2]
[361269877,1747408241366,-400.0,0.00016438,2]
[361269878,1747408241376,-1147.46,0.00016438,2]
[361269879,1747408241385,-157.118635,0.00016438,2]
[361269880,1747408241394,-400.0,0.00016438,2]
[361269881,1747408241404,-756.24,0.00016438,2]
[361269882,1747408241414,-400.0,0.00016438,2]
[361269883,1747408241424,-400.0,0.00016438,2]
[361269884,1747408241434,-400.0,0.00016438,2]
[361269885,1747408241444,-1290.47,0.00016438,2]
[361269886,1747408241453,-531.44,0.00016438,2]
[361269887,1747408241463,-400.0,0.00016438,2]
[361269888,1747408241472,-400.0,0.00016438,2]
[361269889,1747408241481,-400.0,0.00016438,2]
[361269890,1747408241491,-516.02,0.00016438,2]
[361269891,1747408241500,-400.0,0.00016438,2]
[361269892,1747408241510,-332.56616281,0.00016438,2]
[361269893,1747408241519,-400.0,0.00016438,2]
[361269894,1747408241529,-400.0,0.00016438,2]
[361269895,1747408241538,-430.68,0.00016438,2]
[361269896,1747408241549,-400.0,0.00016438,2]
[361269897,1747408241559,-539.26,0.00016438,2]
[361269898,1747408241568,-603.08,0.00016438,2]
[361269899,1747408241577,-400.0,0.00016438,2]
[361269900,1747408241587,-514.18,0.00016438,2]
[361269901,1747408241596,-400.0,0.00016438,2]
[361269902,1747408241605,-808.2,0.00016438,2]
[361269903,1747408241619,-400.0,0.00016438,2]
[361269904,1747408241628,-457.78,0.00016438,2]
[361269905,1747408241637,-183.32633634,0.00016438,2]
[361269906,1747408241647,-774.07,0.00016438,2]
[361269907,1747408241656,-400.0,0.00016438,2]
[361269908,1747408241665,-634.43,0.00016438,2]
[361269909,1747408241675,-958.17,0.00016438,2]
[361269910,1747408241684,-1160.87,0.00016438,2]
[361269911,1747408241693,-640.38,0.00016438,2]
[361269912,1747408241704,-591.63,0.00016438,2]
[361269913,1747408241713,-400.0,0.00016438,2]
[361269914,1747408241722,-400.0,0.00016438,2]
[361269915,1747408241732,-400.0,0.00016438,2]
[361269916,1747408241741,-400.0,0.00016438,2]
[361269917,1747408241750,-703.06,0.00016438,2]
[361269918,1747408241759,-1082.23,0.00016438,2]
[361269919,1747408241768,-400.0,0.00016438,2]
[361269920,1747408241777,-1323.07,0.00016438,2]
[361269921,1747408241787,-951.1,0.00016438,2]
[361269922,1747408241798,-400.0,0.00016438,2]
[361269923,1747408241808,-438.78,0.00016438,2]
[361269924,1747408241817,-400.0,0.00016438,2]
[361269925,1747408241826,-439.33,0.00016438,2]
[361269926,1747408241835,-400.0,0.00016438,2]
[361269927,1747408241845,-548.02,0.00016438,2]
[361269928,1747408241856,-400.0,0.00016438,2]
[361269929,1747408241867,-400.0,0.00016438,2]
[361269930,1747408241876,-400.0,0.00016438,2]
[361269931,1747408241886,-400.0,0.00016438,2]
[361269932,1747408241895,-608.82,0.00016438,2]
[361269933,1747408241904,-400.0,0.00016438,2]
[361269934,1747408241913,-467.54,0.00016438,2]
[361269935,1747408241923,-400.0,0.00016438,2]
[361269936,1747408241932,-359.90916566,0.00016438,2]
[361269937,1747408241942,-400.0,0.00016438,2]
[361269938,1747408241952,-400.0,0.00016438,2]
[361269939,1747408241962,-400.0,0.00016438,2]
[361269940,1747408241972,-538.25,0.00016438,2]
[361269941,1747408241982,-400.0,0.00016438,2]
[361269942,1747408241991,-1474.67,0.00016438,2]
[361269943,1747408242000,-198.96836746,0.00016438,2]
[361269944,1747408242010,-1074.63,0.00016438,2]
[361269945,1747408242019,-453.72,0.00016438,2]
[361269946,1747408242029,-1454.62,0.00016438,2]
[361269947,1747408242039,-400.0,0.00016438,2]
[361269948,1747408242049,-506.85,0.00016438,2]
[361269949,1747408242059,-400.0,0.00016438,2]
[361269950,1747408242069,-400.0,0.00016438,2]
[361269951,1747408242078,-519.74,0.00016438,2]
[361269952,1747408242088,-400.0,0.00016438,2]
[361269953,1747408242097,-400.0,0.00016438,2]
[361269954,1747408242107,-436.8,0.00016438,2]
[361269955,1747408242117,-523.14074585,0.00016438,2]
[361269956,1747408242126,-400.0,0.00016438,2]
[361269957,1747408242135,-782.31,0.00016438,2]
[361269958,1747408242145,-400.0,0.00016438,2]
[361269959,1747408242155,-400.0,0.00016438,2]
[361269960,1747408242165,-1611.89,0.00016438,2]
[361269961,1747408242174,-570.56,0.00016438,2]
[361269962,1747408242184,-166.55561851,0.00016438,2]
[361269963,1747408242194,-400.0,0.00016438,2]
[361269964,1747408242203,-527.52,0.00016438,2]
[361269965,1747408242213,-400.0,0.00016438,2]
[361269966,1747408242222,-400.0,0.00016438,2]
[361269967,1747408242231,-597.82,0.00016438,2]
[361269968,1747408242241,-407.92117711,0.00016438,2]
[361269969,1747408242250,-160.502348,0.00016438,2]
[361269970,1747408242260,-973.89,0.00016438,2]
[361269971,1747408242270,-400.0,0.00016438,2]
[361269972,1747408242280,-400.0,0.00016438,2]
[361269973,1747408242291,-400.0,0.00016438,2]
[361269974,1747408242301,-820.42,0.00016438,2]
[361269975,1747408242311,-206.79228322,0.00016438,2]
[361269976,1747408242320,-400.0,0.00016438,2]
[361269977,1747408242330,-377.97,0.00016438,2]
[361269978,1747408242340,-691.64,0.00016438,2]
[361269979,1747408242349,-896.19,0.00016438,2]
[361269980,1747408242358,-322.14619869,0.00016438,2]
[361269981,1747408242368,-400.0,0.00016438,2]
[361269982,1747408242378,-400.0,0.00016438,2]
[361269983,1747408242388,-449.69502743,0.00016438,2]
[361269984,1747408242397,-604.63,0.00016438,2]
[361269985,1747408242407,-533.98,0.00016438,2]
[361269986,1747408242416,-1730.01,0.00016438,2]
[361269987,1747408242426,-505.2,0.00016438,2]
[361269988,1747408242437,-400.0,0.00016438,2]
[361269989,1747408242447,-1061.29,0.00016438,2]
[361269990,1747408242457,-875.39,0.00016438,2]
[361269991,1747408242467,-412.18,0.00016438,2]
[361269992,1747408242477,-553.81,0.00016438,2]
[361269993,1747408242487,-400.0,0.00016438,2]
[361269994,1747408242497,-420.81,0.00016438,2]
[361269995,1747408242507,-400.0,0.00016438,2]
[361269996,1747408242517,-540.42,0.00016438,2]
[361269997,1747408242527,-400.0,0.00016438,2]
[361269998,1747408242538,-540.65,0.00016438,2]
[361269999,1747408242550,-727.38,0.00016438,2]
[361270000,1747408242560,-854.36,0.00016438,2]
[361270001,1747408242569,-400.0,0.00016438,2]
[361270002,1747408242579,-400.0,0.00016438,2]
[361270003,1747408242589,-1410.97,0.00016438,2]
[361270004,1747408242599,-400.0,0.00016438,2]
[361270005,1747408242612,-400.0,0.00016438,2]
[361270006,1747408242624,-400.0,0.00016438,2]
[361270007,1747408242634,-400.0,0.00016438,2]
[361270008,1747408242643,-400.0,0.00016438,2]
[361270009,1747408242652,-400.0,0.00016438,2]
[361270010,1747408242662,-400.0,0.00016438,2]
[361270011,1747408242672,-400.0,0.00016438,2]
[361270012,1747408242681,-455.19,0.00016438,2]
[361270013,1747408242691,-400.0,0.00016438,2]
[361270014,1747408242704,-400.0,0.00016438,2]
[361270015,1747408242714,-704.98,0.00016438,2]
[361270016,1747408242724,-1128.24,0.00016438,2]
[361270017,1747408242734,-596.65,0.00016438,2]
[361270018,1747408242744,-378.43375983,0.00016438,2]
[361270021,1747408242754,-510.38632454,0.00016438,2]
[361270023,1747408242764,-400.0,0.00016438,2]
[361270025,1747408242775,-400.0,0.00016438,2]
[361270027,1747408242786,-400.0,0.00016438,2]
[361270028,1747408242800,-400.0,0.00016438,2]
[361270029,1747408242811,-207.289549,0.00016438,2]
[361270030,1747408242821,-1019.395958,0.00016438,2]
[361270031,1747408242831,-400.0,0.00016438,2]
[361270032,1747408242842,-400.0,0.00016438,2]
[361270033,1747408242852,-400.0,0.00016438,2]
[361270034,1747408242862,-412.18,0.00016438,2]
[361270035,1747408243081,-565.12,0.00016438,2]
[361270036,1747408243098,-676.28,0.00016438,2]
[361270037,1747408243109,-400.0,0.00016438,2]
[361270038,1747408243119,-499.62,0.00016438,2]
[361270039,1747408243129,-400.0,0.00016438,2]
[361270040,1747408243139,-1076.19,0.00016438,2]
[361270041,1747408243149,-400.0,0.00016438,2]
[361270042,1747408243159,-400.0,0.00016438,2]
[361270043,1747408243169,-400.0,0.00016438,2]
[361270044,1747408243179,-400.0,0.00016438,2]
[361270045,1747408243189,-406.26,0.00016438,2]
[361270046,1747408243198,-646.7,0.00016438,2]
[361270047,1747408243208,-400.0,0.00016438,2]
[361270048,1747408243217,-400.0,0.00016438,2]
[361270049,1747408243227,-1117.41,0.00016438,2]
[361270050,1747408243237,-400.0,0.00016438,2]
[361270051,1747408243246,-778.46,0.00016438,2]
[361270052,1747408243256,-526.56,0.00016438,2]
[361270053,1747408243265,-400.0,0.00016438,2]
[361270054,1747408243275,-400.0,0.00016438,2]
[361270055,1747408243284,-654.01,0.00016438,2]
[361270056,1747408243295,-400.0,0.00016438,2]
[361270057,1747408243305,-412.45,0.00016438,2]
[361270058,1747408243315,-451.78,0.00016438,2]
[361270059,1747408243324,-400.0,0.00016438,2]
[361270060,1747408243333,-400.0,0.00016438,2]
[361270061,1747408243343,-400.0,0.00016438,2]
[361270062,1747408243353,-165.5670839,0.00016438,2]
[361270063,1747408243362,-400.0,0.00016438,2]
[361270064,1747408243371,-400.27,0.00016438,2]
[361270065,1747408243381,-260.77970728,0.00016438,2]
[361270066,1747408243390,-400.0,0.00016438,2]
[361270067,1747408243401,-404.43753463,0.00016438,2]
[361270068,1747408243410,-400.0,0.00016438,2]
[361270069,1747408243420,-400.0,0.00016438,2]
[361270070,1747408243430,-1539.12,0.00016438,2]
[361270071,1747408243440,-901.88,0.00016438,2]
[361270072,1747408243450,-400.0,0.00016438,2]
[361270073,1747408243460,-400.0,0.00016438,2]
[361270074,1747408243469,-400.0,0.00016438,2]
[361270075,1747408243479,-498.47,0.00016438,2]
[361270076,1747408243489,-484.68870023,0.00016438,2]
[361270077,1747408243498,-400.0,0.00016438,2]
[361270078,1747408243508,-1358.58,0.00016438,2]
[361270079,1747408243518,-524.97799727,0.00016438,2]
[361270080,1747408243527,-400.0,0.00016438,2]
[361270081,1747408243537,-1107.74,0.00016438,2]
[361270082,1747408243551,-1432.01,0.00016438,2]
[361270083,1747408243560,-400.0,0.00016438,2]
[361270084,1747408243569,-400.0,0.00016438,2]
[361270085,1747408243579,-424.45,0.00016438,2]
[361270086,1747408243589,-400.0,0.00016438,2]
[361270087,1747408243598,-500.0,0.00016438,2]
[361270088,1747408243608,-804.33,0.00016438,2]
[361270089,1747408243620,-400.0,0.00016438,2]
[361270090,1747408243631,-428.94,0.00016438,2]
[361270091,1747408243641,-400.0,0.00016438,2]
[361270092,1747408243651,-400.0,0.00016438,2]
[361270093,1747408243660,-400.0,0.00016438,2]
[361270094,1747408243670,-480.51,0.00016438,2]
[361270095,1747408243680,-858.08,0.00016438,2]
[361270096,1747408243689,-400.0,0.00016438,2]
[361270097,1747408243699,-400.0,0.00016438,2]
[361270098,1747408243710,-801.06,0.00016438,2]
[361270099,1747408243720,-706.6,0.00016438,2]
[361270100,1747408243730,-400.0,0.00016438,2]
[361270101,1747408243740,-400.0,0.00016438,2]
[361270102,1747408243749,-517.69,0.00016438,2]
[361270103,1747408243758,-1057.69,0.00016438,2]
[361270104,1747408243768,-1077.77,0.00016438,2]
[361270105,1747408243777,-872.78,0.00016438,2]
[361270106,1747408243786,-578.79,0.00016438,2]
[361270107,1747408243797,-1287.16,0.00016438,2]
[361270108,1747408243807,-400.0,0.00016438,2]
[361270109,1747408243818,-698.69,0.00016438,2]
[361270110,1747408243828,-400.0,0.00016438,2]
[361270111,1747408243837,-400.0,0.00016438,2]
[361270112,1747408243847,-1710.13,0.00016438,2]
[361270113,1747408243857,-578.1,0.00016438,2]
[361270114,1747408243868,-400.0,0.00016438,2]
[361270115,1747408243877,-400.0,0.00016438,2]
[361270116,1747408243886,-1775.77,0.00016438,2]
[361270117,1747408243896,-400.0,0.00016438,2]
[361270118,1747408243906,-878.84,0.00016438,2]
[361270119,1747408243915,-400.0,0.00016438,2]
[361270120,1747408243924,-514.53,0.00016438,2]
[361270121,1747408243934,-400.0,0.00016438,2]
[361270122,1747408243943,-400.0,0.00016438,2]
[361270123,1747408243952,-400.0,0.00016438,2]
[361270124,1747408243962,-1337.0,0.00016438,2]
[361270125,1747408243971,-400.0,0.00016438,2]
[361270126,1747408243980,-1865.99,0.00016438,2]
[361270127,1747408243989,-400.0,0.00016438,2]
[361270128,1747408243998,-728.46,0.00016438,2]
[361270129,1747408244008,-400.0,0.00016438,2]
[361270130,1747408244017,-400.0,0.00016438,2]
[361270131,1747408244026,-400.0,0.00016438,2]
[361270132,1747408244035,-462.65,0.00016438,2]
[361270133,1747408244046,-400.0,0.00016438,2]
[361270134,1747408244056,-461.29,0.00016438,2]
[361270135,1747408244065,-2010.22,0.00016438,2]
[361270136,1747408244075,-400.0,0.00016438,2]
[361270137,1747408244084,-709.26,0.00016438,2]
[361270138,1747408244093,-400.0,0.00016438,2]
[361270139,1747408244102,-400.0,0.00016438,2]
[361270140,1747408244112,-400.0,0.00016438,2]
[361270141,1747408244121,-400.0,0.00016438,2]
[361270142,1747408244130,-400.0,0.00016438,2]
[361270143,1747408244139,-2068.11,0.00016438,2]
[361270144,1747408244149,-1393.0,0.00016438,2]
[361270145,1747408244158,-400.0,0.00016438,2]
[361270146,1747408244168,-400.0,0.00016438,2]
[361270147,1747408244177,-578.24,0.00016438,2]
[361270148,1747408244186,-1080.89,0.00016438,2]
[361270149,1747408244195,-470.01,0.00016438,2]
[361270150,1747408244204,-400.0,0.00016438,2]
[361270151,1747408244214,-400.0,0.00016438,2]
[361270152,1747408244224,-400.0,0.00016438,2]
[361270153,1747408244233,-668.62,0.00016438,2]
[361270154,1747408244243,-400.0,0.00016438,2]
[361270155,1747408244252,-677.2,0.00016438,2]
[361270156,1747408244262,-584.2,0.00016438,2]
[361270157,1747408244271,-424.11,0.00016438,2]
[361270158,1747408244280,-400.0,0.00016438,2]
[361270159,1747408244290,-400.0,0.00016438,2]
[361270160,1747408244302,-400.0,0.00016438,2]
[361270161,1747408244311,-475.82,0.00016438,2]
[361270162,1747408244321,-400.0,0.00016438,2]
[361270163,1747408244330,-2312.03,0.00016438,2]
[361270164,1747408244340,-400.0,0.00016438,2]
[361270165,1747408244350,-400.0,0.00016438,2]
[361270166,1747408244359,-353.03822898,0.00016438,2]
[361270167,1747408244368,-593.1,0.00016438,2]
[361270168,1747408244378,-400.0,0.00016438,2]
[361270169,1747408244387,-504.27505154,0.00016438,2]
[361270170,1747408244397,-400.0,0.00016438,2]
[361270171,1747408244406,-1285.52,0.00016438,2]
[361270172,1747408244415,-400.0,0.00016438,2]
[361270173,1747408244425,-400.0,0.00016438,2]
[361270174,1747408244435,-718.25,0.00016438,2]
[361270175,1747408244445,-442.97632959,0.00016438,2]
[361270176,1747408244454,-400.0,0.00016438,2]
[361270177,1747408244464,-400.0,0.00016438,2]
[361270178,1747408244474,-400.0,0.00016438,2]
[361270179,1747408244486,-400.0,0.00016438,2]
[361270180,1747408244495,-400.0,0.00016438,2]
[361270181,1747408244505,-400.0,0.00016438,2]
[361270182,1747408244516,-400.0,0.00016438,2]
[361270183,1747408244526,-400.0,0.00016438,2]
[361270184,1747408244535,-400.0,0.00016438,2]
[361270185,1747408244548,-400.0,0.00016438,2]
[361270186,1747408244558,-400.0,0.00016438,2]
[361270187,1747408244568,-1732.67,0.00016438,2]
[361270188,1747408244578,-818.28,0.00016438,2]
[361270189,1747408244589,-508.64,0.00016438,2]
[361270190,1747408244599,-400.0,0.00016438,2]
[361270191,1747408244611,-400.0,0.00016438,2]
[361270192,1747408244623,-400.0,0.00016438,2]
[361270193,1747408244634,-479.54,0.00016438,2]
[361270194,1747408244644,-400.0,0.00016438,2]
[361270195,1747408244654,-281.42975936,0.00016438,2]
[361270196,1747408244722,-118.57024064,0.00016438,2]
[361270197,1747408244732,-400.0,0.00016438,2]
[361270198,1747408244742,-1921.17696245,0.00016438,2]
[361270199,1747408244754,-4930.9037663,0.00016438,2]
[361270200,1747408244791,-714.36521683,0.00016438,2]
[361270201,1747408244803,-869.35971672,0.00016438,2]
[361270202,1747408245041,-1142.715482,0.00016438,2]
[361270208,1747408246176,-161.14,0.00016428,2]
[361270210,1747408246186,-161.14,0.00016428,2]
[361270212,1747408246195,-1217.77969592,0.00016438,2]
[361270218,1747408246236,-1703.69915978,0.00016438,2]
[361270220,1747408246245,-895.25,0.00016438,2]
[361270221,1747408246255,-400.0,0.00016438,2]
[361270224,1747408246264,-162.79095322,0.00016438,2]
[361270226,1747408246276,-315.16977897,0.00016438,2]
[361270228,1747408246285,-1351.86736266,0.00016438,2]
[361270230,1747408246299,-22.23263734,0.00016438,2]
[361270232,1747408246309,-400.0,0.00016438,2]
[361270234,1747408246318,-1949.31,0.00016438,2]
[361270236,1747408246328,-673.87,0.00016438,2]
[361270238,1747408246337,-410.4642289,0.00016438,2]
[361270240,1747408246346,-637.15,0.00016438,2]
[361270242,1747408246356,-423.24,0.00016438,2]
[361270244,1747408246365,-400.0,0.00016438,2]
[361270246,1747408246375,-442.53,0.00016438,2]
[361270248,1747408246384,-211.98019842,0.00016438,2]
[361270250,1747408246393,-500.0,0.00016438,2]
[361270252,1747408246402,-484.6,0.00016438,2]
[361270254,1747408246412,-1222.37,0.00016438,2]
[361270256,1747408246421,-400.0,0.00016438,2]
[361270258,1747408246432,-400.0,0.00016438,2]
[361270260,1747408246441,-400.0,0.00016438,2]
[361270262,1747408246450,-400.0,0.00016438,2]
[361270264,1747408246459,-400.0,0.00016438,2]
[361270265,1747408246469,-809.87,0.00016438,2]
[361270267,1747408246478,-400.0,0.00016438,2]
[361270269,1747408246488,-400.0,0.00016438,2]
[361270272,1747408246497,-582.26,0.00016438,2]
[361270274,1747408246507,-400.0,0.00016438,2]
[361270275,1747408246516,-400.0,0.00016438,2]
[361270277,1747408246526,-1174.67,0.00016438,2]
[361270279,1747408246536,-400.0,0.00016438,2]
[361270281,1747408246546,-400.0,0.00016438,2]
[361270283,1747408246556,-400.0,0.00016438,2]
[361270285,1747408246567,-400.0,0.00016438,2]
[361270287,1747408246577,-1092.98,0.00016438,2]
[361270289,1747408246587,-400.0,0.00016438,2]
[361270291,1747408246597,-648.57,0.00016438,2]
[361270293,1747408246608,-400.0,0.00016438,2]
[361270295,1747408246618,-400.0,0.00016438,2]
[361270298,1747408246631,-400.0,0.00016438,2]
[361270299,1747408246640,-400.0,0.00016438,2]
[361270301,1747408246649,-1062.5,0.00016438,2]
[361270303,1747408246660,-400.0,0.00016438,2]
[361270305,1747408246670,-408.24,0.00016438,2]
[361270307,1747408246680,-970.24,0.00016438,2]
[361270309,1747408246689,-1014.37,0.00016438,2]
[361270311,1747408246700,-555.35,0.00016438,2]
[361270313,1747408246711,-400.0,0.00016438,2]
[361270316,1747408246723,-796.43,0.00016438,2]
[361270318,1747408246733,-552.69,0.00016438,2]
[361270320,1747408246742,-400.0,0.00016438,2]
[361270322,1747408246752,-400.0,0.00016438,2]
[361270323,1747408246762,-500.0,0.00016438,2]
[361270325,1747408246772,-400.0,0.00016438,2]
[361270328,1747408246781,-400.0,0.00016438,2]
[361270329,1747408246791,-400.0,0.00016438,2]
[361270331,1747408246803,-400.0,0.00016438,2]
[361270334,1747408246813,-1127.77,0.00016438,2]
[361270336,1747408246824,-927.77,0.00016438,2]
[361270338,1747408246834,-506.78,0.00016438,2]
[361270340,1747408246843,-1840.87,0.00016438,2]
[361270342,1747408246853,-400.0,0.00016438,2]
[361270344,1747408246862,-400.0,0.00016438,2]
[361270346,1747408246872,-490.63,0.00016438,2]
[361270348,1747408246882,-400.0,0.00016438,2]
[361270350,1747408246891,-1251.41,0.00016438,2]
[361270352,1747408246901,-400.0,0.00016438,2]
[361270354,1747408246911,-400.0,0.00016438,2]
[361270356,1747408246920,-1116.77,0.00016438,2]
[361270358,1747408246929,-400.0,0.00016438,2]
[361270359,1747408246938,-400.0,0.00016438,2]
[361270362,1747408246948,-1702.95,0.00016438,2]
[361270364,1747408246957,-400.0,0.00016438,2]
[361270365,1747408246967,-711.37,0.00016438,2]
[361270367,1747408246976,-400.0,0.00016438,2]
[361270370,1747408246986,-400.0,0.00016438,2]
[361270372,1747408246995,-2129.74,0.00016438,2]
[361270374,1747408247005,-400.0,0.00016438,2]
[361270375,1747408247014,-400.0,0.00016438,2]
[361270377,1747408247024,-400.0,0.00016438,2]
[361270380,1747408247034,-400.0,0.00016438,2]
[361270382,1747408247047,-400.0,0.00016438,2]
[361270384,1747408247056,-400.0,0.00016438,2]
[361270386,1747408247066,-794.4,0.00016438,2]
[361270388,1747408247075,-543.52,0.00016438,2]
[361270390,1747408247085,-937.06,0.00016438,2]
[361270392,1747408247094,-400.0,0.00016438,2]
[361270394,1747408247103,-500.0,0.00016438,2]
[361270396,1747408247112,-500.0,0.00016438,2]
[361270398,1747408247121,-53773.04293535,0.00016438,2]
[361270455,1747408247717,-6163.41419395,0.00016438,2]
[361270456,1747408247733,-5243.17614498,0.00016438,2]
[361270457,1747408247749,-72468.85672572,0.00016438,2]
[361270458,1747408247758,-500.0,0.00016438,2]
[361270459,1747408247767,-477.23,0.00016438,2]
[361270460,1747408247776,-500.0,0.00016438,2]
[361270461,1747408247786,-500.0,0.00016438,2]
[361270462,1747408247796,-400.0,0.00016438,2]
[361270463,1747408247805,-734.28,0.00016438,2]
[361270465,1747408247914,-426.15,0.00016438,2]
[361270466,1747408247924,-400.0,0.00016438,2]
[361270468,1747408247933,-1476.44,0.00016438,2]
[361270470,1747408247942,-1469.35,0.00016438,2]
[361270472,1747408247951,-400.0,0.00016438,2]
[361270474,1747408247962,-1061.91,0.00016438,2]
[361270476,1747408247971,-1649.48,0.00016438,2]
[361270478,1747408247980,-1000.0,0.00016438,2]
[361270480,1747408247989,-400.0,0.00016438,2]
[361270482,1747408247998,-6260.89,0.00016438,2]
[361270484,1747408248008,-400.0,0.00016438,2]
[361270486,1747408248017,-1117.28,0.00016438,2]
[361270489,1747408248027,-400.0,0.00016438,2]
[361270491,1747408248037,-400.0,0.00016438,2]
[361270493,1747408248048,-400.0,0.00016438,2]
[361270494,1747408248058,-13235.77,0.00016438,2]
[361270496,1747408248068,-841.78,0.00016438,2]
[361270499,1747408248078,-1000.36,0.00016438,2]
[361270501,1747408248088,-400.0,0.00016438,2]
[361270502,1747408248098,-343.14060886,0.00016438,2]
[361270505,1747408248119,-295.99920458,0.00016438,2]
[361270506,1747408248891,-513.75,0.00016428,2]
[361270507,1747408248903,-29.77,0.00016428,2]
[361270508,1747408248913,-327.17018656,0.00016438,2]
[361270509,1747408248923,-400.0,0.00016438,2]
[361270510,1747408248933,-5565.66,0.00016438,2]
[361270511,1747408248943,-400.0,0.00016438,2]
[361270512,1747408248953,-400.0,0.00016438,2]
[361270513,1747408248963,-400.0,0.00016438,2]
[361270514,1747408248973,-400.0,0.00016438,2]
[361270515,1747408248984,-1674.85,0.00016438,2]
[361270516,1747408248993,-400.0,0.00016438,2]
[361270517,1747408249003,-7119.6,0.00016438,2]
[361270518,1747408249013,-501.06,0.00016438,2]
[361270519,1747408249022,-506.74,0.00016438,2]
[361270520,1747408249032,-1379.37,0.00016438,2]
[361270521,1747408249041,-574.93,0.00016438,2]
[361270522,1747408249052,-400.0,0.00016438,2]
[361270523,1747408249061,-400.0,0.00016438,2]
[361270524,1747408249071,-9638.14,0.00016438,2]
[361270525,1747408249081,-3189.0,0.00016438,2]
[361270526,1747408249091,-653.92608028,0.00016438,2]
[361270527,1747408249103,-275.96391972,0.00016438,2]
[361270528,1747408249114,-23.54650029,0.00016438,2]
[361270529,1747408249135,-13485.94349971,0.00016438,2]
[361270530,1747408249145,-1700.1,0.00016438,2]
[361270531,1747408249155,-706.85,0.00016438,2]
[361270532,1747408249164,-400.0,0.00016438,2]
[361270533,1747408249173,-400.0,0.00016438,2]
[361270534,1747408249183,-534.29,0.00016438,2]
[361270535,1747408249193,-416.83,0.00016438,2]
[361270536,1747408249202,-3231.38,0.00016438,2]
[361270537,1747408249212,-13.84156412,0.00016438,2]
[361270538,1747408249224,-575.65843588,0.00016438,2]
[361270539,1747408249233,-343.0768776,0.00016438,2]
[361270540,1747408249276,-129.5331224,0.00016438,2]
[361270541,1747408249287,-843.86,0.00016438,2]
[361270542,1747408249297,-432.41,0.00016438,2]
[361270543,1747408249307,-524.94,0.00016438,2]
[361270544,1747408249317,-680.0,0.00016438,2]
[361270545,1747408249326,-601.91961064,0.00016438,2]
[361270546,1747408249338,-1119.99038936,0.00016438,2]
[361270547,1747408249348,-711.98,0.00016438,2]
[361270548,1747408249358,-791.35,0.00016438,2]
[361270549,1747408249368,-601.13,0.00016438,2]
[361270550,1747408249378,-5613.31732939,0.00016438,2]
[361270551,1747408249390,-4480.47291394,0.00016438,2]
[361270552,1747408403041,5993.49,0.00027397,120]
[361270553,1747408609641,2064.0,0.00025,30]
[361270554,1747408959411,150.0,0.00012,5]
[361270557,1747409329709,3064.47269432,0.00016,14]
[361270584,1747409432036,-581.98,0.00013102,2]
[361270585,1747409432047,-972.31,0.00013699,2]